Cogmind - Beta 15 @@@ ROGUE MODE // 2025.07.23 @ 16:49:42 Player: PoggyBison Result: Destroyed by D-53 Grenadier with Mini Grenade Launcher Performance ------------- Evolutions (0) 0 Regions Visited (2) 400 Robots Destroyed (9) 45 Value Destroyed (84) 84 Prototype IDs (0) 0 Alien Tech Used (0) 0 Bonus (25) 25 TOTAL SCORE: 554 Bonus ------- Follower Combat Kills 25 Cogmind --------- Core Integrity 0/250 Matter 290/300 Energy 125/125 System Corruption 5% Temperature Cool (0) Movement Core (250) Ox4 Location -10/Mines Parts ------- > --- POWER (1) -------- Light Ion Engine > --- PROPULSION (2) --- (None) > --- UTILITY (2) ------ Medium Storage Unit > --- WEAPON (2) ------- (None) > --- INVENTORY (10) --- Light Ion Engine Compact Wheel High-capacity Matter Pod (200) Bomb Drone Bay Light Cannon Peak State ------------ > --- POWER ------------ Light Ion Engine > --- PROPULSION ------- Wheel Compact Wheel > --- UTILITY ---------- Medium Storage Unit Improved Terrain Scanner > --- WEAPON ----------- Medium Laser Particle Gun > --- INVENTORY -------- Light Ion Engine Light Ion Engine Wheel Wheel Wheel Compact Wheel High-capacity Matter Pod Bomb Drone Bay Light Cannon [Rating: 12] Favorites ----------- Power Light Ion Engine Engine Light Ion Engine Propulsion Wheel Wheel Wheel Utility Improved Terrain Scanner Device Improved Terrain Scanner Storage Medium Storage Unit Weapon Medium Laser Energy Gun Medium Laser Ballistic Gun Assault Rifle Build | -11 -10 -10 ------- Run | Yrd Mat Min Slots Evolved . | . . . Power . | . . . Propulsion . | . . . Utility . | . . . Weapon . | . . . Parts Attached 15 | 9 1 5 Power 2 | 1 . 1 Engine 2 | 1 . 1 Core . | . . . Reactor . | . . . Propulsion 5 | 2 . 3 Treads . | . . . Leg . | . . . Wheel 5 | 2 . 3 Hover . | . . . Flight . | . . . Utility 4 | 3 1 . Device 2 | 2 . . Storage 2 | 1 1 . Processor . | . . . Hackware . | . . . Protection . | . . . Artifact . | . . . Weapon 4 | 3 . 1 Energy Gun 3 | 2 . 1 Energy Cannon . | . . . Ballistic Gun 1 | 1 . . Ballistic Cannon . | . . . Launcher . | . . . Special Weapon . | . . . Impact Weapon . | . . . Slashing Weapon . | . . . Piercing Weapon . | . . . Special Melee Weapon . | . . . Unidentified Prototypes . | . . . Parts Lost 9 | . . 9 Power 1 | . . 1 Propulsion 5 | . . 5 Utility 1 | . . 1 Weapon 2 | . . 2 Highest Loss Streak 9 | . . 9 To Critical Strikes . | . . . Average Backups 7 | 5 8 8 Power 1 | 1 2 2 Propulsion 3 | 3 4 3 Utility 1 | . 1 1 Weapon . | . . 1 Tool/Special . | . . . Unused Backups 12 | 4 3 5 Power 2 | . 1 1 Propulsion 5 | 4 . 1 Utility 4 | . 2 2 Weapon 1 | . . 1 Tool/Special . | . . . Average Slot Usage (%) 97 | . 100 95 Engine 14 | . 14 14 Wheel 27 | . 28 26 Device 12 | . 14 12 Storage 14 | . 14 14 Energy Gun 19 | . 14 23 Ballistic Gun 8 | . 14 4 Peak Build Rating 12 | 9 9 12 Average Rating 8 | 7 9 10 On Entrance 6 | . 9 9 Naked Turns . | . . . Heaviest Build 19 | 13 18 19 Greatest Support 26 | 16 26 26 Greatest Overweight (x) 5 | . . 5 Average Overweight (x) . | . . . Largest Inventory Capacity 10 | 8 10 10 Average Capacity 8 | 7 9 10 Most Carried 10 | 8 8 10 Average Carried 7 | 5 7 8 Final Capacity 10 | 8 10 10 Final Carried 8 | 8 8 6 Class Distribution -------------------- 100% | Mutant Dominant Class ---------------- Mutant | -10/Materials Mutant | -10/Mines Resources | -11 -10 -10 ----------- Run | Yrd Mat Min Matter Collected 625 | 371 83 171 Remotely 42 | 42 . . Salvage Created 271 | 211 17 43 Parts 18 | 16 2 . Haulers Intercepted . | . . . Recyclers Shooed . | . . . Parts Field Recycled . | . . . Retrieved Matter . | . . . Parts Self-Destructed . | . . . Prevented . | . . . Kills | -11 -10 -10 ------- Run | Yrd Mat Min Combat Hostiles Destroyed 1 | . . 1 Guns 1 | . . 1 Classes Destroyed 4 | 3 . 1 Worker 3 | 2 1 . Tunneler 4 | 4 . . Recycler 1 | 1 . . Grunt 1 | . . 1 Best Kill Streak 3 | 3 1 1 Combat Bots Only 1 | . . 1 Max Kills in Single Turn 1 | 1 1 1 Gunslinging . | . . . Exploded . | . . . Melee . | . . . Uniques/NPCs Destroyed . | . . . Combat | -11 -10 -10 -------- Run | Yrd Mat Min Hostile Shots Fired 17 | . . 17 Missed . | . . . Hits 17 | . . 17 Melee 2 | . . 2 Projectile 15 | . . 15 AOE 15 | . . 15 Damage Taken 713 | . . 713 Core 266 | . . 266 Absorbed by Shields . | . . . Core Remaining (%) 100 | 100 . . Volleys Fired 22 | 12 5 5 Largest 2 | 2 2 2 Hottest 115 | 70 70 115 Shots Fired 44 | 24 10 10 Gun 44 | 24 10 10 Cannon . | . . . Launcher . | . . . Special . | . . . Kinetic 20 | 12 5 3 Thermal 24 | 12 5 7 Explosive . | . . . Electromagnetic . | . . . Robot Hit Streak 11 | 11 8 6 Robot Miss Streak 2 | 1 2 1 Penetration Max . | . . . Secondary Targets . | . . . Shots Hit Robots 32 | 17 7 8 Core Hits 13 | 7 3 3 Critical Kills . | . . . Critical Parts Destroyed . | . . . Critical Strikes 4 | 1 2 1 Burn 4 | 1 2 1 Melee Attacks . | . . . Impact . | . . . Slashing . | . . . Piercing . | . . . Sneak Attacks . | . . . Combat Hostiles . | . . . Follow-up Attacks . | . . . Damage Inflicted 412 | 207 100 105 Guns 412 | 207 100 105 Cannons . | . . . Explosions . | . . . Melee . | . . . Ramming . | . . . Kinetic 143 | 69 48 26 Thermal 269 | 138 52 79 Explosive . | . . . Electromagnetic . | . . . Impact . | . . . Slashing . | . . . Piercing . | . . . Highest Corruption 5 | . . 5 Average Corruption 5 | . . 5 Corruption Purged . | . . . Corruption Blocked . | . . . Effects 1 | . . 1 Alerts 1 | . . 1 Overload Shots . | . . . Overflow Damage . | . . . Projectiles . | . . . Explosions . | . . . Melee . | . . . Knockbacks . | . . . Impact . | . . . Kinetic . | . . . Secondary . | . . . Self-Inflicted Damage . | . . . Shots . | . . . Rammed . | . . . Targets Rammed . | . . . Kicked . | . . . Crushed . | . . . Highest Temperature 108 | 27 27 108 Average Temperature 17 | 10 11 34 Received Heat Transfer 6 | . . 6 Siege Activations . | . . . Martial Activations . | . . . Shielding Activations . | . . . Robots Disrupted . | . . . Combat Hostiles . | . . . Robots Corrupted . | . . . Combat Hostiles . | . . . Parts Fried . | . . . Impact Corruptions . | . . . Robots Melted . | . . . Combat Hostiles . | . . . Parts Melted 2 | 2 . . Heat Transferred 1073 | 481 296 296 Parts Sabotaged . | . . . Parts Stolen . | . . . Parts Stripped . | . . . Power Chain Reactions . | . . . Alert | -11 -10 -10 ------- Run | Yrd Mat Min Maximum Alert Level . | . . . Low Security (%) 100 | 100 100 100 Level 1 . | . . . Level 2 . | . . . Level 3 . | . . . Level 4 . | . . . Level 5 . | . . . High Security . | . . . Max Security . | . . . Peak Influence 33 | 10 5 33 Initial . | . . . Average 3 | 1 . 7 Influence Increases 96 | 35 5 56 Destroy 0b10 Robot/C 40 | . . 40 Destroy 0b10 Robot/NC 40 | 35 5 . Destroy Leader 10 | . . 10 Allied During Kill 6 | . . 6 Influence Decreases 96 | 35 5 56 Time Decay 83 | 35 5 43 Lost Ally 13 | . . 13 Squads Dispatched . | . . . Investigation . | . . . Extermination . | . . . Reinforcement . | . . . Assault . | . . . Garrison . | . . . Intercept . | . . . Searches Triggered . | . . . Construction Impeded . | . . . Haulers Reinforced . | . . . Active Scanning Responses . | . . . Cargo Convoy Interrupts . | . . . Stealth | -11 -10 -10 --------- Run | Yrd Mat Min Distress Signals . | . . . Communications Jammed . | . . . Distress Signals . | . . . Times Spotted 14 | . 3 11 Peak Tracking Total 6 | . 2 6 Tactical Retreats 1 | . . 1 Traps | -11 -10 -10 ------- Run | Yrd Mat Min Traps Triggered . | . . . Indirectly . | . . . Trap Hack Attempts . | . . . Triggered . | . . . Disarmed . | . . . Reprogrammed . | . . . Reused . | . . . Traps Extracted . | . . . Installed . | . . . Triggered . | . . . Machines | -11 -10 -10 ---------- Run | Yrd Mat Min Machines Disabled . | . . . Max in Single Turn . | . . . Machines Repaired . | . . . Machines Dismantled . | . . . Machines Sabotaged . | . . . Overloaded Fab Kills . | . . . Hacking | -11 -10 -10 --------- Run | Yrd Mat Min Machines Accessed 4 | . 3 1 Terminals 2 | . 2 . Fabricators . | . . . Repair Stations . | . . . Recycling Units 1 | . 1 . Scanalyzers . | . . . Garrison Access . | . . . Total Hacks 11 | . 10 1 Successful 5 | . 4 1 Failed 6 | . 6 . Catastrophic . | . . . Database Lockouts . | . . . Manual . | . . . Terminals 6 | . 6 . Fabricators . | . . . Repair Stations . | . . . Recycling Units 4 | . 4 . Scanalyzers . | . . . Garrison Access . | . . . Terminal Hacks 3 | . 2 1 Open Door 1 | . . 1 Zone Layout 2 | . 2 . Fabricator Hacks . | . . . Repair Station Hacks . | . . . Recycling Unit Hacks 2 | . 2 . Retrieve Matter 1 | . 1 . Retrieve Components 1 | . 1 . Scanalyzer . | . . . Garrison Access Hacks . | . . . Unauthorized Hacks . | . . . Terminals . | . . . Fabricators . | . . . Repair Stations . | . . . Recycling Units . | . . . Scanalyzers . | . . . Garrison Access . | . . . Data Cores Recovered . | . . . Used . | . . . Hacking Detections 2 | . 2 . Full Trace Events . | . . . Feedback Events . | . . . Feedback Blocked . | . . . Robot Schematics Acquired . | . . . Robots Built . | . . . Authchips . | . . . Time . | . . . Total Robot Build Rating . | . . . Part Schematics Acquired . | . . . Parts Built . | . . . Authchips . | . . . Time . | . . . Total Part Build Rating . | . . . Parts Repaired . | . . . Time . | . . . Parts Recycled . | . . . Recycled Matter . | . . . Retrieved Matter . | . . . Retrieved Components . | . . . Parts Scanalyzed . | . . . Part Schematics Acquired . | . . . Parts Damaged . | . . . Bothacking | -11 -10 -10 ------------ Run | Yrd Mat Min Used RIF Installer . | . . . Robots Hacked . | . . . Non-combat . | . . . Combat . | . . . Robot Hacks Applied . | . . . Relay Couplers Released . | . . . Fabnet Peak Effective % . | . . . Robots Rewired . | . . . Allies Hacked . | . . . Hacks Repelled . | . . . Allies | -11 -10 -10 -------- Run | Yrd Mat Min Total Allies 3 | . . 3 Largest Group 3 | . . 3 Highest-Rated Group 40 | . . 40 Highest-Rated Ally 16 | . . 16 Total Orders 1 | . . 1 GUARD 1 | . . 1 Ally Attacks 10 | . . 10 Total Damage 123 | . . 123 Kills 1 | . . 1 Allies Corrupted . | . . . Allies Melted . | . . . Intel | -11 -10 -10 ------- Run | Yrd Mat Min Active Infowar (turns) 447 | 106 168 173 Terrain 447 | 106 168 173 Robot Analysis Total . | . . . Derelict Logs Recovered . | . . . Drone Launches . | . . . Drone Recoveries . | . . . Exploration | -11 -10 -10 ------------- Run | Yrd Mat Min Turns Passed 547 | 176 168 203 Spaces Moved 432 | 110 155 167 Core 4 | 1 . 3 Treads . | . . . Legs . | . . . Wheels 428 | 109 155 164 Hover . | . . . Flight . | . . . Fastest Speed 50 | 50 90 80 Average Speed 95 | 99 95 92 Slowest Speed 300 | 100 100 300 Overloaded Moves . | . . . Propulsion Burnouts . | . . . Robots Hopped . | . . . Potential Cave-ins 2 | . . 2 Cave-ins Triggered 1 | . . 1 Exploration Rate (%) 31 | 7 48 39 Regions Visited 2 Branch Regions 1 Pre-discovered Areas . | . . . Known Exits Taken . | . . . Unknown Exits Taken 2 | 1 1 . Scrap Searched 1 | . . 1 Spaces Dug . | . . . Terrain Destroyed . | . . . Melee . | . . . Projectile . | . . . AOE . | . . . Terrain Rammed . | . . . Walls Destroyed . | . . . Machines Disabled . | . . . Actions | -11 -10 -10 --------- Run | Yrd Mat Min Total 525 | 150 168 207 Wait 29 | 1 1 27 Move 429 | 109 154 166 Hop . | . . . Pick Up 18 | 14 3 1 Fast Attach 6 | 6 . . Attach 6 | 1 . 5 Detach 1 | . . 1 Swap 4 | 2 1 1 Drop 9 | 5 4 . Fire 22 | 12 5 5 Melee . | . . . Ram . | . . . Kick . | . . . Crush . | . . . Escape Stasis 1 | . . 1 Rewire . | . . . Trap . | . . . Miscellaneous . | . . . Route ------- -11/Scrapyard -10/Materials (discovered 2 exits: [*Mat] / *Min) -10/Mines History --------- Turn | Location | Event 25 | -11/Scrapyard | Discovered new exit (range 15) 177 | -11/Scrapyard | Entered Materials 251 | -10/Materials | Discovered new exit (range 11) 301 | -10/Materials | Build established: Mutant 306 | -10/Materials | Discovered new exit (range 14) 345 | -10/Materials | Entered Mines 346 | -10/Mines | Assisted by bots powering up and referring to "LRC-V3" 441 | -10/Mines | Found the Drone Emporium 450 | -10/Mines | Found Prototype Device 466 | -10/Mines | Assembled infested the area 471 | -10/Mines | Assisted by a Guerilla fighting off Assembled 518 | -10/Mines | Crushed by falling debris 541 | -10/Mines | Core integrity fell below 50% 545 | -10/Mines | Lost 3 allies 547 | -10/Mines | Core integrity fell below 20% 548 | -10/Mines | Destroyed by D-53 Grenadier with Mini Grenade Launcher Last Messages --------------- 00514_ Trooper 1b destroyed. 00516_ Wheel destroyed. 00517_ The unstable cave ceiling collapses. 00518_ Crushed by falling debris. 00518_ Imp. Terrain Scanner destroyed. 00518_ System corrupted by crushing effect (+4). 00518_ Com. Wheel destroyed. 00518_ System corrupted by crushing effect (+1). 00519_ The unstable cave ceiling collapses. 00538_ Particle Gun destroyed. 00540_ Wheel destroyed. 00542_ The unstable cave ceiling collapses. 00542_ Lgt. Ion Engine destroyed. 00544_ System corrupted: IFF burst signal emitted. 00544_ The unstable cave ceiling collapses. 00544_ Med. Laser destroyed. 00544_ Wheel destroyed. 00544_ D-53 Grenadier destroyed. 00548_ The unstable cave ceiling collapses. Map ----- +----------------------------------------------------+ | | | | | | | | | | | | | | | | | | | | | | | | | | | | | | | | | | | | | | | | | ?????????????????????????????????????????????????? | | ???????????????############??????????????????????? | | ??????????????## # # #####???? ##??????????? | | ??????????????# ## #??????????? | | ?????????????### ????????????? | | ?????????????# @ #???????????????????? | | ?????????????## ##???????????????????? | | ??????###?????# #???????????????????? | | ?????## ?????# d ##???????????????????? | | ?????# ######## #????????????????????? | | ????## ######## ###????????????????????? | | ##### % ##??????????????????????? | | ? # ####### ##???????????????????????? | | ?## = ###### #????????????????????????? | | # * % #????????????????????????? | | # % # # #####????????????????????????? | | # #????????????????????????????? | | # #?????#??????????????????????? | | " ### #???????????????????????????? | | ?????????# # ???????????????????????? | | ?????????# #????????????????????? | | ????????### # ##### #???????????????????? | | ????????# ### #?????? #??????????????????? | | ????????# ####? ##???????? ??????????????????? | | ?????#### #??# ###????????????????????????????? | | ?#??## ##?# ##?????#????????????????????????? | | ?#??# #?# ##???????????????????????????????? | | ????# #?# ?????????????????????????????????? | | ????## #### ???????#?????????????????????????? | | ?#???## #??## ???????#?????????????????????????? | +----------------------------------------------------+ Best States ------------- Heat Dissipation 25 Energy Generation 10 Energy Capacity 125 Matter Stores 300 Matter Capacity 300 Sight Range 16 Terrain Scan Range 16 Terrain Scan Density 10 Evasion (%) 44 Item Schematics ----------------- None Robot Schematics ------------------ None Fabricated ------------ Nothing Repaired ---------- Nothing Alien Tech Used ----------------- None Achievements -------------- None Challenges ------------ None Game ------ Seed CannonEncryptedHumpback Manual? 0 Play Time 00:20:42 Cumulative 23.8 hours Start 2025.07.23 @ 15:35:03 End 2025.07.23 @ 16:49:42 Sessions 3 Manual Loads 0 Difficulty Rogue Special Mode None Game No. 14 Rogue 14 Adventurer 0 Explorer 0 Win Type - Total 0 Types 0/0/0/0/0/0/0/0/0/0 Lore% 5 Gallery% 20 Achievement% 17 Wizard Run 0 Options --------- Layout 2 ASCII 0 Keyboard 1 Movement Numpad Keybinds 0 Fullscreen 1 Font 24/Proggy Map View 50x44 Zoom Use 0% Tactical HUD 1 Map Filters NONE Filters NONE Steam 1 RUN: d5a61b6a-243d-41b6-9574-a3b38941e7a6